Cogmind - Beta 11.1 @@@ ROGUE MODE // 2022.07.23 @ 19:28:34 Player: tkc Result: Destroyed self with Mini Grenade Launcher Performance ------------- Evolutions (1) 500 Regions Visited (3) 600 Robots Destroyed (73) 365 Value Destroyed (1210) 1210 Prototype IDs (0) 0 Alien Tech Used (0) 0 Bonus (33) 33 TOTAL SCORE: 2708 Bonus ------- High Alert Combat Kills 182 Follower Combat Kills 39 Friendly Fire -188 Cogmind --------- Core Integrity 0/400 Matter 271/300 Energy 125/125 System Corruption 0% Temperature Cool (0) Movement Rolling (115) Ox1 Location -9/Mines Parts ------- > --- POWER (1) -------- Light Ion Engine > --- PROPULSION (2) --- Light Treads Compact Wheel > --- UTILITY (4) ------ Large Storage Unit Terrain Scan Processor Weapon Shielding Light Armor Plating > --- WEAPON (2) ------- Mini Grenade Launcher Maul > --- INVENTORY (15) --- Large Matter Pod (150) Hacking Suite EM Shotgun EM Shotgun EM Pulse Cannon Heavy Assault Rifle Heavy Assault Rifle Improved Light Cannon Datajack Maul Peak State ------------ > --- POWER ------------ Improved Ion Engine > --- PROPULSION ------- Improved Treads Compact Wheel > --- UTILITY ---------- Large Storage Unit Structural Scanner Terrain Scan Processor Hardened Light Armor Plating > --- WEAPON ----------- EM Shotgun EM Shotgun > --- INVENTORY -------- Light Treads Large Matter Pod Weapon Shielding Light Armor Plating Hacking Suite Light Assault Rifle Heavy Assault Rifle Heavy Assault Rifle Improved Light Cannon Grenade Launcher Mini Grenade Launcher Datajack Maul Maul [Rating: 17] Favorites ----------- Power Light Ion Engine Engine Light Ion Engine Propulsion Compact Wheel Treads Light Treads Wheel Compact Wheel Utility Large Storage Unit Device Improved Terrain Scanner Storage Large Storage Unit Processor Terrain Scan Processor Protection Hardened Light Armor Plating Weapon Light Assault Rifle Energy Gun Small Laser Ballistic Gun Light Assault Rifle Launcher Mini Grenade Launcher Impact Weapon Mace Build | -11 -10 -9 -9 ------- Run | Scr Mat Mat Min Slots Evolved 2 | . . 2 . Power . | . . . . Propulsion . | . . . . Utility 2 | . . 2 . Weapon . | . . . . Parts Attached 58 | 9 18 22 9 Power 6 | 1 1 3 1 Engine 6 | 1 1 3 1 Core . | . . . . Reactor . | . . . . Propulsion 11 | 2 4 4 1 Treads 6 | 1 2 2 1 Leg . | . . . . Wheel 5 | 1 2 2 . Hover . | . . . . Flight . | . . . . Utility 12 | 3 1 5 3 Device 3 | 1 . 1 1 Storage 3 | 2 1 . . Processor 1 | . . 1 . Hackware . | . . . . Protection 5 | . . 3 2 Artifact . | . . . . Weapon 29 | 3 12 10 4 Energy Gun 11 | 3 4 3 1 Energy Cannon . | . . . . Ballistic Gun 6 | . 3 3 . Ballistic Cannon . | . . . . Launcher 3 | . 1 . 2 Special Weapon . | . . . . Impact Weapon 9 | . 4 4 1 Slashing Weapon . | . . . . Piercing Weapon . | . . . . Special Melee Weapon . | . . . . Unidentified Prototypes . | . . . . Parts Lost 17 | . 2 11 4 Power 4 | . . 4 . Propulsion 6 | . 1 4 1 Utility 3 | . . 1 2 Weapon 4 | . 1 2 1 Highest Loss Streak 6 | . 1 6 3 To Critical Strikes . | . . . . Average Slot Usage (%) 93 | . 95 92 88 Engine 10 | . 14 8 3 Treads 11 | . 12 10 11 Wheel 11 | . 11 11 11 Device 10 | . 14 6 5 Storage 12 | . 14 11 11 Processor 5 | . . 11 11 Protection 5 | . . 11 14 Energy Gun 9 | . 12 4 8 Ballistic Gun 6 | . 6 9 . Launcher 1 | . 1 . 5 Impact Weapon 7 | . 7 7 7 Naked Turns . | . . . . Heaviest Build 39 | 16 29 39 32 Greatest Support 40 | 20 40 23 23 Greatest Overweight (x) 2 | . 1 2 1 Average Overweight (x) . | . . 1 1 Largest Inventory Capacity 15 | 8 15 15 15 Average Capacity 14 | 7 14 15 15 Most Carried 15 | 8 15 15 14 Average Carried 12 | 6 13 13 12 Final Capacity 15 | 8 15 15 15 Final Carried 15 | 8 15 14 10 Class Distribution -------------------- 73% | Mutant 26% | Scavenger-Mutant Dominant Class ---------------- Mutant | -10/Materials Mutant | -9/Materials Mutant | -9/Mines Resources | -11 -10 -9 -9 ----------- Run | Scr Mat Mat Min Matter Collected 1081 | 280 360 225 216 Remotely . | . . . . Salvage Created 2047 | 196 387 1156 308 Parts 116 | 16 40 54 6 Haulers Intercepted 1 | . 1 . . Recyclers Shooed 5 | . 2 2 1 Parts Field Recycled . | . . . . Retrieved Matter . | . . . . Parts Self-Destructed . | . . . . Prevented . | . . . . Kills | -11 -10 -9 -9 ------- Run | Scr Mat Mat Min Combat Hostiles Destroyed 46 | . 13 24 9 Melee 12 | . . 10 2 Guns 15 | . 7 7 1 AOE 12 | . 6 . 6 Classes Destroyed 12 | 3 6 1 2 Worker 9 | 2 . 4 3 Builder 4 | . 1 2 1 Tunneler 7 | 3 1 . 3 Hauler 1 | . 1 . . Recycler 5 | 1 . 3 1 Operator 6 | . 4 2 . Watcher 2 | . 1 1 . Swarmer 17 | . 9 8 . Grunt 17 | . 4 12 1 Brawler 1 | . . . 1 Sentry 4 | . . 4 . Assembled 7 | . . . 7 Best Kill Streak 9 | 4 4 9 5 Combat Bots Only 6 | . 3 6 4 Max Kills in Single Turn 3 | 1 3 2 1 Gunslinging 1 | . 1 . . Exploded 3 | . 3 . 1 Melee 1 | . . 1 1 Uniques/NPCs Destroyed . | . . . . Combat | -11 -10 -9 -9 -------- Run | Scr Mat Mat Min Damage Taken 2305 | . 364 1338 603 Core 455 | . 53 233 169 Absorbed by Shields . | . . . . Redirected to Shielding 48 | . . 48 . Regen/Repaired (Parts) 97 | . 41 56 . Core Remaining (%) 89 | 100 78 . . Volleys Fired 111 | 15 50 26 20 Largest 2 | 2 2 2 2 Hottest 90 | 90 90 90 90 Shots Fired 176 | 30 80 42 24 Gun 154 | 30 74 42 8 Cannon . | . . . . Launcher 22 | . 6 . 16 Special . | . . . . Kinetic 15 | . 5 10 . Thermal 101 | 30 69 2 . Explosive 22 | . 6 . 16 Electromagnetic 38 | . . 30 8 Robot Hit Streak 15 | 7 10 15 12 Robot Miss Streak 4 | 4 3 2 2 Penetration Max . | . . . . Secondary Targets 3 | . 1 1 1 Max Gunslinging Chain 1 | . 1 1 1 Shots Hit Robots 168 | 17 56 69 26 Core Hits 97 | 7 30 30 30 Critical Kills 3 | . . 1 2 Critical Parts Destroyed 9 | . . 9 . Critical Strikes 15 | . 1 12 2 Burn 1 | . 1 . . Corrupt 1 | . . 1 . Smash 13 | . . 11 2 Melee Attacks 116 | . 31 75 10 Impact 116 | . 31 75 10 Slashing . | . . . . Piercing . | . . . . Sneak Attacks 15 | . 1 8 6 Combat Hostiles . | . . . . Follow-up Attacks . | . . . . Damage Inflicted 4584 | 231 1014 2180 1159 Guns 1452 | 231 609 509 103 Cannons . | . . . . Explosions 811 | . 331 . 480 Melee 2321 | . 74 1671 576 Ramming . | . . . . Kinetic 132 | . 44 88 . Thermal 806 | 231 565 10 . Explosive 811 | . 331 . 480 Electromagnetic 514 | . . 411 103 Impact 2321 | . 74 1671 576 Slashing . | . . . . Piercing . | . . . . Highest Corruption 1 | . 1 . . Average Corruption 1 | . 1 . . Corruption Purged . | . . . . Corruption Blocked . | . . . . Effects 12 | . 12 . . Message Errors 3 | . 3 . . Matter Fused 2 | . 2 . . Heat Flow Errors 3 | . 3 . . Parts Rejected 1 | . 1 . . Data Loss (minor) 2 | . 2 . . Misfires 1 | . 1 . . Overload Shots . | . . . . Overflow Damage 1084 | . 61 755 268 Projectiles 23 | . . 23 . Explosions 28 | . 28 . . Melee 1033 | . 33 732 268 Knockbacks 13 | . . 10 3 Impact 11 | . . 8 3 Kinetic . | . . . . Secondary 2 | . . 2 . Self-Inflicted Damage 155 | . 21 . 134 Shots 7 | . 1 . 6 Rammed . | . . . . Targets Rammed . | . . . . Kicked . | . . . . Crushed . | . . . . Highest Temperature 333 | 120 218 333 38 Average Temperature 64 | 46 46 119 18 Received Heat Transfer 600 | . 108 456 36 Siege Activations . | . . . . Robots Corrupted . | . . . . Combat Hostiles . | . . . . Parts Fried 23 | . 1 16 6 Impact Corruptions 43 | . 1 32 10 Robots Melted . | . . . . Combat Hostiles . | . . . . Parts Melted 4 | . 4 . . Heat Transferred 2171 | 619 1527 25 . Parts Sabotaged . | . . . . Parts Stolen . | . . . . Parts Stripped . | . . . . Power Chain Reactions . | . . . . Missiles Intercepted . | . . . . Alert | -11 -10 -9 -9 ------- Run | Scr Mat Mat Min Peak Influence 1018 | 30 337 1018 420 Initial 270 | . 19 18 270 Average 216 | 9 147 308 322 Maximum Alert Level 3 | . 1 3 2 Low Security (%) 64 | 100 78 64 . Level 1 23 | . 21 1 91 Level 2 4 | . . 11 8 Level 3 7 | . . 22 . Level 4 . | . . . . Level 5 . | . . . . High Security . | . . . . Max Security . | . . . . Squads Dispatched 8 | . 4 4 . Investigation 5 | . 3 2 . Extermination . | . . . . Reinforcement 3 | . 1 2 . Assault . | . . . . Garrison . | . . . . Intercept . | . . . . Searches Triggered 1 | . . 1 . Construction Impeded . | . . . . Haulers Reinforced . | . . . . Active Scanning Responses . | . . . . Cargo Convoy Interrupts . | . . . . Stealth | -11 -10 -9 -9 --------- Run | Scr Mat Mat Min Distress Signals 6 | . 1 4 1 Communications Jammed . | . . . . Distress Signals . | . . . . Times Spotted 79 | . 28 38 13 Peak Tracking Total 8 | . 5 8 2 Tactical Retreats 3 | . 1 2 . Traps | -11 -10 -9 -9 ------- Run | Scr Mat Mat Min Traps Triggered 3 | . 2 1 . Indirectly . | . . . . Trap Hack Attempts . | . . . . Triggered . | . . . . Disarmed . | . . . . Reprogrammed . | . . . . Reused . | . . . . Traps Extracted . | . . . . Installed . | . . . . Triggered . | . . . . Machines | -11 -10 -9 -9 ---------- Run | Scr Mat Mat Min Machines Disabled 4 | . 2 1 1 Max in Single Turn 2 | . 2 1 1 Machines Sabotaged . | . . . . Garrisons Compromised . | . . . . Overloaded Fab Kills . | . . . . Hacking | -11 -10 -9 -9 --------- Run | Scr Mat Mat Min Machines Accessed 20 | . 10 10 . Terminals 14 | . 7 7 . Fabricators . | . . . . Repair Stations 2 | . 1 1 . Recycling Units 3 | . 2 1 . Scanalyzers 1 | . . 1 . Garrison Access . | . . . . Total Hacks 65 | . 31 34 . Successful 39 | . 16 23 . Failed 26 | . 15 11 . Catastrophic 7 | . 4 3 . Database Lockouts . | . . . . Manual 42 | . 22 20 . Terminals 54 | . 26 28 . Fabricators . | . . . . Repair Stations 4 | . 2 2 . Recycling Units 5 | . 3 2 . Scanalyzers 2 | . . 2 . Garrison Access . | . . . . Terminal Hacks 16 | . 4 12 . Part Schematic 1 | . . 1 . Robot Analysis 2 | . . 2 . Level Access Points 1 | . . 1 . Branch Access Points 2 | . 1 1 . Terminal Index 2 | . 1 1 . Alert Level 2 | . . 2 . Unreport Threat 1 | . . 1 . Dispatch Records 1 | . . 1 . Recall Investigation 1 | . 1 . . Registered Components 1 | . 1 . . Zone Layout 2 | . . 2 . Fabricator Hacks . | . . . . Repair Station Hacks 4 | . 2 2 . Scan Component 2 | . 1 1 . Repair 2 | . 1 1 . Recycling Unit Hacks 5 | . 3 2 . Report Inventory 3 | . 2 1 . Retrieve Components 2 | . 1 1 . Scanalyzer 2 | . . 2 . Insert Component 1 | . . 1 . Analyze 1 | . . 1 . Garrison Access Hacks . | . . . . Unauthorized Hacks 12 | . 7 5 . Terminals 12 | . 7 5 . Assimilate 4 | . 3 1 . Botnet 6 | . 3 3 . Operators 2 | . 1 1 . Fabricators . | . . . . Repair Stations . | . . . . Recycling Units . | . . . . Scanalyzers . | . . . . Garrison Access . | . . . . Data Cores Recovered . | . . . . Used . | . . . . Hacking Detections 15 | . 8 7 . Full Trace Events 4 | . 1 3 . Feedback Events 1 | . 1 . . Corruption 1 | . 1 . . Feedback Blocked . | . . . . Robot Schematics Acquired . | . . . . Robots Built . | . . . . Authchips . | . . . . Time . | . . . . Total Robot Build Rating . | . . . . Part Schematics Acquired 1 | . . 1 . Parts Built . | . . . . Authchips . | . . . . Time . | . . . . Total Part Build Rating . | . . . . Parts Repaired 2 | . 1 1 . Time 58 | . 26 32 . Parts Recycled . | . . . . Recycled Matter . | . . . . Retrieved Matter . | . . . . Retrieved Components 11 | . 2 9 . Parts Scanalyzed 1 | . . 1 . Part Schematics Acquired . | . . . . Parts Damaged . | . . . . Bothacking | -11 -10 -9 -9 ------------ Run | Scr Mat Mat Min Used RIF Installer . | . . . . Robots Hacked . | . . . . Non-combat . | . . . . Combat . | . . . . Robot Hacks Applied . | . . . . Relay Couplers Released . | . . . . Fabnet Peak Effective % . | . . . . Robots Rewired . | . . . . Allies Hacked . | . . . . Hacks Repelled . | . . . . Allies | -11 -10 -9 -9 -------- Run | Scr Mat Mat Min Total Allies 3 | . 2 . 1 Largest Group 2 | . 2 . 1 Highest-Rated Group 31 | . 20 . 31 Highest-Rated Ally 31 | . 10 . 31 Total Orders 2 | . 2 . . STAY 2 | . 2 . . Ally Attacks 19 | . . . 19 Total Damage 187 | . . . 187 Kills 4 | . . . 4 Allies Corrupted . | . . . . Allies Melted . | . . . . Intel | -11 -10 -9 -9 ------- Run | Scr Mat Mat Min Robot Analysis Total 2 | . . 2 . Derelict Logs Recovered 1 | . . . 1 Drone Launches . | . . . . Drone Recoveries . | . . . . Exploration | -11 -10 -9 -9 ------------- Run | Scr Mat Mat Min Turns Passed 4044 | 167 2046 1304 527 Spaces Moved 1632 | 99 743 486 304 Core 4 | 4 . . . Treads 568 | 4 284 247 33 Legs . | . . . . Wheels 1060 | 91 459 239 271 Hover . | . . . . Flight . | . . . . Fastest Speed 50 | 50 100 115 115 Average Speed 156 | 100 156 184 128 Slowest Speed 240 | 160 240 240 240 Overloaded Moves . | . . . . Propulsion Burnouts . | . . . . Robots Hopped . | . . . . Cave-ins Triggered . | . . . . Exploration Rate (%) 48 | 5 99 48 41 Regions Visited 3 Branch Regions 1 Pre-discovered Areas . | . . . . Known Exits Taken 1 | . . 1 . Unknown Exits Taken 2 | 1 1 . . Scrap Searched . | . . . . Spaces Dug 39 | . 17 22 . Terrain Destroyed 166 | . 41 22 103 Melee 39 | . 17 22 . Projectile . | . . . . AOE 127 | . 24 . 103 Terrain Rammed . | . . . . Walls Destroyed . | . . . . Machines Disabled . | . . . . Actions | -11 -10 -9 -9 --------- Run | Scr Mat Mat Min Total 2720 | 132 1493 699 396 Wait 758 | . 632 74 52 Move 1629 | 98 742 485 304 Hop . | . . . . Pick Up 35 | 9 14 12 . Fast Attach 13 | 7 . 4 2 Attach 18 | . 4 10 4 Detach 1 | . 1 . . Swap 27 | 2 14 8 3 Drop 12 | 1 5 5 1 Fire 111 | 15 50 26 20 Melee 116 | . 31 75 10 Ram . | . . . . Kick . | . . . . Crush . | . . . . Escape Stasis . | . . . . Rewire . | . . . . Trap . | . . . . Miscellaneous . | . . . . Route ------- -11/Scrapyard -10/Materials (discovered 5 exits: *Mat x3 / *Min x2) -9/Materials (discovered 5 exits: *Mat x3 / *Min x2) -9/Mines (discovered 1 exit: *Mat) History --------- Turn | Location | Event 8 | -11/Scrapyard | Discovered new exit (range 15) 168 | -11/Scrapyard | Entered Materials 318 | -10/Materials | Build established: Mutant 341 | -10/Materials | Discovered new exit (range 10) 381 | -10/Materials | Discovered new exit (range 16) 631 | -10/Materials | Repaired Grenade Launcher 845 | -10/Materials | Discovered new exit (range 15) 1432 | -10/Materials | Identified exit to Mines 1724 | -10/Materials | Build established: Scavenger-Mutant 1965 | -10/Materials | Discovered new exit (range 3) 2168 | -10/Materials | Discovered new exit (range 3) 2214 | -10/Materials | Entered another Materials area 2214 | -9/Materials | Evolved 2 slots: Utility x2 2456 | -9/Materials | Lost 6 parts (2p2n2w) 2798 | -9/Materials | Identified exit to Materials 2798 | -9/Materials | Identified exit to Mines 3010 | -9/Materials | Repaired Imp. Treads 3120 | -9/Materials | Build established: Mutant 3414 | -9/Materials | Search patrols dispatched 3481 | -9/Materials | Core integrity fell below 50% 3518 | -9/Materials | Entered Mines 3737 | -9/Mines | Assembled infested the area 3769 | -9/Mines | Learned 2 Materials zone layouts 3778 | -9/Mines | Received a Mining Laser from a helpful Derelict 3784 | -9/Mines | Core integrity fell below 20% 3816 | -9/Mines | Lost 3 parts (1n1u1w) 3919 | -9/Mines | Discovered exit to Materials (range 5) 4045 | -9/Mines | Destroyed self with Mini Grenade Launcher Last Messages --------------- 03957_ Acquired 9 matter. 03959_ R-06 Scavenger collects Wheel. 03961_ R-06 Scavenger collects Med. Matter Pod. 03963_ as-32932 destroyed. 03965_ R-06 Scavenger collects Corrupted Sml. Storage Unit. 03969_ R-06 Scavenger collects Wheel. 03970_ Acquired 8 matter. 03971_ The unstable cave ceiling collapses. 03977_ as-61389 destroyed. 03982_ The unstable cave ceiling collapses. 04009_ Acquired 19 matter. 04011_ as-40408 destroyed. 04013_ Destroyed Asb. Hover Unit. 04016_ as-78041 destroyed. 04019_ Acquired 17 matter. 04025_ The unstable cave ceiling collapses. 04029_ Acquired 4 matter. 04041_ TL-9AI(g): "You look like you can take it from here!" 04041_ TL-9AI(g) slips back into the shadows. 04045_ as-55294 destroyed. Map ----- +----------------------------------------------------+ | ?????????????????????????????????????????????????? | | ?????????????????????????????????????????????????? | | ?????????????????????????????????????????????????? | | ?????????????????????????????????????????????????? | | ?????????????????????????????????????????????????? | | ?????????????????????????????????????????????????? | | ??????????????????????????#????????#???????######? | | ????????????????????????????#?###########?######## | | ???????????????????????????#??###########?### ### | | ???????????????????????##??##?##% ##### ## | | ???????????????????????????##### ##### | | ????????????????????? ????##?### ## | | ?????????????????????? ???##### """ ## | | ???????????????????### ?#####?## """ ## | | ?????????????????? #?##?####### """ ###### | | ???????????????"?????#??#?#?#### ###### """ | | ???????????????? ?? #####?#?#############??### """ | | ???????????????"?? ######?#?################# """ | | ???????????????"??? ? #???################### | | ??????????????? ? ?????#?##?### ########## | | ?????????????#?#?##?## ??###### ## | | ???????????????#?###?#?##?#####% | | ?????????#?????##?###? ##### %% | | ???????????????? ? ##### %## ## # | | ??????????????? ?# ##?## # ### ####### | | ???????????? ??#??#### @ #### ############# | | ????????????? ###? ## ################???? | | ???????? ??????###?# = ######??####???? | | ????????????????## ## % # ## ####??#???? | | ??????????????#?## ## # ## # | #?###????? | | ???????????? ? ? t ## # ####??#???? | | ?????????????#?#??### ## # ## ##?##?##???? | | ??????????? ?????#?###?# ####?##????? | | ????????????###??####### ####?###### | | ?????????????##???##?## # ##?#??# # | | ??????????????#??????#### # ## ######## | | ?????????????##?????#??# r # ### | | ??????????????????##?#?## # # #?# ## # | | ??????????????#??????#??### ####?# | | ???????????????????#????### ##### | | ????????????????????#??### " " ### | | ?????????????????????????# = | | ?????????????????????????## # = = | | ????????????????????????#?# ##### # | | ??????????????????????????# #???#### # # # | | ??????????????????????????# #??????######## ## | | ??????????????????????????# #?????????????####? | | ??????????????????????????## ##?????#???????????? | | ???????????????????????????####??????????????????? | | ?????????????????????????????????????????????????? | +----------------------------------------------------+ Best States ------------- Heat Dissipation 28 Energy Generation 12 Energy Capacity 265 Matter Stores 300 Matter Capacity 300 Sight Range 16 Terrain Scan Range 16 Terrain Scan Density 85 Armor Coverage 150 Propulsion Shielding 33 Weapon Shielding 33 Evasion (%) 40 Recoil Reduction 2 Item Schematics ----------------- Core Shielding | -9/Materials | Hacked Robot Schematics ------------------ None Fabricated ------------ Nothing Alien Tech Used ----------------- None Achievements -------------- None Challenges ------------ None Game ------ Seed ThunderDroneBox Manual? 0 Play Time 00:59:45 Cumulative 90.9 hours Start 2022.07.23 @ 18:29:14 End 2022.07.23 @ 19:28:34 Sessions 1 Manual Loads 0 Difficulty Rogue Special Mode None Game No. 58 Rogue 57 Adventurer 0 Explorer 1 Win Type - Total 0 Types 0/0/0/0/0/0/0/0/0 Lore% 22 Gallery% 36 Achievement% 26 Wizard Run 0 Options --------- ASCII 0 Keyboard 0 Movement Mouse Keybinds 0 Fullscreen 1 Font 36/Terminus Map View 76x50 Tactical HUD 1 Map Filters NONE Filters NONE Steam 1 RUN: a31225a7-9875-41f6-a369-7208dce8c784